bitfinex/quotes_SOLUSD_20251019
["timestamp","ask_amount","ask_price","bid_price","bid_amount"]
[1760844387624,4.02043426,186.28,186.24,0.91]
[1760844389255,0.68,186.28,186.24,0.91]
[1760844389440,3.34043426,186.29,186.25,0.71]
[1760844389748,4.02043426,186.3,186.26,0.71]
[1760844389949,3.34043426,186.3,186.24,25.05311658]
[1760844390151,4.02043426,186.3,186.25,0.71]
[1760844390345,3.34043426,186.3,186.25,0.71]
[1760844390557,0.68,186.29,186.25,0.71]
[1760844390750,3.34043426,186.3,186.26,0.71]
[1760844390930,4.02043426,186.3,186.26,0.71]
[1760844391137,0.68,186.3,186.26,0.71]
[1760844391331,26.90043426,186.31,186.27,0.71]
[1760844391530,0.68,186.3,186.25,9.41952739]
[1760844391730,0.68,186.3,186.26,0.71]
[1760844393335,3.34043426,186.3,186.25,8.70952739]
[1760844393552,4.02043426,186.3,186.25,9.41952739]
[1760844393852,3.34043426,186.29,186.25,6.07909313]
[1760844394149,4.02043426,186.29,186.25,22.22157745]
[1760844394327,0.68,186.29,186.26,0.71]
[1760844394527,4.02043426,186.29,186.26,0.71]
[1760844394753,3.34043426,186.29,186.26,0.71]
[1760844396149,4.02043426,186.29,186.25,22.22157745]
[1760844396454,4.02043426,186.29,186.26,0.71]
[1760844396751,3.34043426,186.29,186.26,0.71]
[1760844397250,4.02043426,186.29,186.26,0.71]
[1760844397654,22.88,186.31,186.26,0.71]
[1760844397843,3.34043426,186.29,186.26,0.71]
[1760844401244,3.34043426,186.29,186.27,0.71]
[1760844401439,3.34043426,186.29,186.25,5.36909313]
[1760844401646,3.34043426,186.29,186.26,0.71]
[1760844404150,3.34043426,186.29,186.26,6.07883532]
[1760844405359,4.02043426,186.29,186.26,6.07883532]
[1760844406563,3.34043426,186.29,186.26,6.07883532]
[1760844406858,3.34043426,186.29,186.27,0.68]
[1760844408052,3.34043426,186.29,186.25,6.04912751]
[1760844408359,3.34043426,186.29,186.26,0.68]
[1760844409065,4.02043426,186.3,186.26,6.04879182]
[1760844409359,0.68,186.3,186.26,5.36879182]
[1760844409564,3.34043426,186.31,186.27,0.68]
[1760844411457,4.02043426,186.31,186.27,0.68]
[1760844411652,102.1,186.33,186.26,8.70922608]
[1760844411653,3.34043426,186.32,186.28,0.68]
[1760844411852,3.34043426,186.32,186.26,8.70922608]
[1760844412160,3.34043426,186.32,186.29,0.68]
[1760844412762,105.44043426,186.33,186.27,3.34043426]
[1760844412946,105.44043426,186.33,186.3,0.68]
[1760844413146,102.1,186.33,186.3,0.68]
[1760844414061,102.1,186.33,186.29,5.36786043]
[1760844414280,102.1,186.33,186.31,0.68]
[1760844414858,102.1,186.33,186.32,0.68]
[1760844415175,102.1,186.33,186.29,8.70829469]
[1760844415176,102.1,186.33,186.31,0.68]
[1760844419871,102.1,186.33,186.3,0.68]
[1760844421451,102.1,186.33,186.3,5.36765934]
[1760844421786,102.1,186.33,186.3,25.52710427]
[1760844422883,102.1,186.33,186.31,0.68]
[1760844424288,102.1,186.33,186.3,25.52710427]
[1760844425275,102.1,186.33,186.3,24.84710427]
[1760844425772,102.1,186.33,186.3,25.52710427]
[1760844425973,102.1,186.33,186.31,0.68]
[1760844427566,102.1,186.33,186.3,24.84710427]
[1760844427869,102.1,186.33,186.31,0.7]
[1760844428666,102.1,186.33,186.31,16.83901067]
[1760844428868,102.77,186.33,186.31,16.13901067]
[1760844429366,102.1,186.33,186.31,16.83901067]
[1760844430076,102.1,186.33,186.32,0.7]
[1760844431355,102.1,186.33,186.31,22.20632688]
[1760844431676,0.67,186.36,186.32,4.04043426]
[1760844431871,3.34043426,186.37,186.33,0.7]
[1760844432077,0.67,186.37,186.33,0.7]
[1760844432275,0.67,186.37,186.32,19.47857675]
[1760844432467,0.67,186.36,186.32,20.17857675]
[1760844432674,4.01043426,186.36,186.32,16.83814249]
[1760844433679,4.01043426,186.36,186.32,21.50519166]
[1760844433875,4.01043426,186.36,186.33,0.7]
[1760844434074,0.67,186.36,186.33,0.7]
[1760844434270,3.34043426,186.37,186.33,0.7]
[1760844434477,4.04043426,186.37,186.32,24.84562592]
[1760844434674,4.04043426,186.37,186.33,0.7]
[1760844434980,4.04043426,186.37,186.32,24.84562592]
[1760844435182,4.04043426,186.37,186.33,0.7]
[1760844435763,0.7,186.37,186.33,0.7]
[1760844436681,4.04043426,186.37,186.33,5.3667391]
[1760844436878,105.44043426,186.38,186.34,0.7]
[1760844437076,106.14043426,186.38,186.33,21.50314552]
[1760844437271,0.7,186.37,186.33,21.50314552]
[1760844437490,0.7,186.37,186.34,0.7]
[1760844437669,106.14043426,186.38,186.34,0.7]
[1760844437865,106.14043426,186.38,186.35,0.7]
[1760844438069,0.7,186.37,186.33,25.54271188]
[1760844438365,105.44043426,186.38,186.34,0.7]
[1760844438573,102.8,186.38,186.34,0.7]
[1760844438771,105.44043426,186.38,186.35,0.7]
[1760844439662,102.1,186.38,186.34,21.50206513]
[1760844439866,102.8,186.38,186.34,22.20206513]
[1760844440694,102.8,186.38,186.34,21.50206513]
[1760844440857,102.8,186.38,186.35,0.7]
[1760844441403,106.14043426,186.38,186.35,0.7]
[1760844442363,106.14043426,186.38,186.34,5.36652661]
[1760844442567,106.14043426,186.38,186.34,6.06652661]
[1760844442963,102.1,186.38,186.37,22.88]
[1760844443176,0.7,186.4,186.37,22.88]
[1760844443370,3.34043426,186.41,186.37,0.7]
[1760844443569,4.04043426,186.41,186.37,0.7]
[1760844443771,4.04043426,186.41,186.37,16.833803]
[1760844444304,4.04043426,186.41,186.4,22.88]
[1760844444668,4.04043426,186.41,186.39,22.88]
[1760844444874,0.7,186.41,186.39,22.88]
[1760844446670,3.34043426,186.4,186.39,22.88]
[1760844446870,4.04043426,186.4,186.39,22.88]
[1760844448680,3.34043426,186.4,186.38,16.133803]
[1760844449073,3.34043426,186.42,186.39,0.7]
[1760844449373,3.34043426,186.42,186.4,0.7]
[1760844450288,3.34043426,186.42,186.39,16.833803]
[1760844452191,3.34043426,186.42,186.4,0.7]
[1760844452579,3.34043426,186.42,186.39,16.833803]
[1760844452985,4.04043426,186.43,186.39,16.833803]
[1760844453490,3.34043426,186.44,186.4,0.7]
[1760844453682,4.04043426,186.44,186.4,16.83206786]
[1760844454486,4.04043426,186.43,186.4,16.13206786]
[1760844454680,4.04043426,186.42,186.4,16.13206786]
[1760844454975,3.34043426,186.42,186.4,16.13206786]
[1760844455378,0.7,186.44,186.4,16.83206786]
[1760844455589,3.34043426,186.43,186.4,16.83206786]
[1760844455893,102.1,186.46,186.41,0.7]
[1760844456098,3.34043426,186.43,186.41,0.7]
[1760844456996,4.04043426,186.43,186.4,16.13206786]
[1760844457294,3.34043426,186.42,186.4,16.13206786]
[1760844459098,3.34043426,186.42,186.4,16.83206786]
[1760844461787,4.04043426,186.41,186.4,16.13206786]
[1760844461991,30.26086852,186.41,186.32,0.7]
[1760844462192,3.34043426,186.33,186.32,0.7]
[1760844462593,3.34043426,186.34,186.32,0.7]
[1760844463388,3.34043426,186.34,186.3,21.49970416]
[1760844463588,3.34043426,186.34,186.31,0.72]
[1760844463899,3.34043426,186.32,186.29,0.72]
[1760844464198,3.34043426,186.31,186.29,16.85901067]
[1760844464499,3.34043426,186.31,186.27,6.08854593]
[1760844464800,3.34043426,186.31,186.28,16.86074731]
[1760844465004,3.34043426,186.31,186.29,0.72]
[1760844468390,3.34043426,186.3,186.26,5.36855196]
[1760844468702,3.34043426,186.3,186.27,0.72]
[1760844469304,3.34043426,186.3,186.26,21.50929927]
[1760844469500,3.34043426,186.31,186.27,0.72]
[1760844469690,3.34043426,186.31,186.27,16.86161577]
[1760844469886,3.34043426,186.31,186.28,0.72]
[1760844472206,3.34043426,186.31,186.27,16.14161577]
[1760844472410,3.34043426,186.31,186.28,0.72]
[1760844472809,3.34043426,186.32,186.29,0.72]
[1760844473104,3.34043426,186.33,186.29,0.72]
[1760844473412,105.44043426,186.34,186.29,0.72]
[1760844475295,105.44043426,186.34,186.29,6.08794445]
[1760844475611,105.44043426,186.34,186.3,0.72]
[1760844477293,105.44043426,186.34,186.29,21.5078234]
[1760844477500,105.44043426,186.34,186.3,0.72]
[1760844478610,106.04043426,186.34,186.3,0.72]
[1760844478813,3.94043426,186.33,186.3,0.72]
[1760844479118,3.94043426,186.32,186.28,21.50809307]
[1760844479293,3.94043426,186.32,186.28,6.08821412]
[1760844479701,3.94043426,186.32,186.28,0.72]
[1760844480315,3.34043426,186.32,186.29,0.72]
[1760844480626,3.94043426,186.33,186.29,0.72]
[1760844481008,3.34043426,186.33,186.28,16.14074731]
[1760844481196,3.34043426,186.33,186.3,0.72]
[1760844482414,3.94043426,186.33,186.28,20.20118157]
[1760844482607,3.94043426,186.33,186.29,0.72]
[1760844483399,3.34043426,186.32,186.29,0.72]
[1760844483714,3.34043426,186.32,186.28,21.50899255]
[1760844483914,3.34043426,186.32,186.3,0.72]
[1760844484217,3.94043426,186.32,186.28,0.72]
[1760844484512,3.34043426,186.31,186.28,0.72]
[1760844484703,3.94043426,186.31,186.27,16.86074731]
[1760844484907,3.34043426,186.3,186.27,16.86074731]
[1760844486524,3.34043426,186.3,186.27,0.72]
[1760844487614,3.94043426,186.31,186.28,0.68]
[1760844487813,0.6,186.31,186.28,0.68]
[1760844488215,3.94043426,186.32,186.28,0.68]
[1760844488409,3.94043426,186.32,186.27,16.14161577]
[1760844488410,3.34043426,186.32,186.27,24.85053802]
[1760844488613,3.34043426,186.33,186.29,0.68]
[1760844489214,3.34043426,186.33,186.29,16.81987895]
[1760844489416,3.34043426,186.33,186.3,0.68]
[1760844490017,105.44043426,186.34,186.3,0.68]
[1760844490324,105.44043426,186.34,186.3,6.04761295]
[1760844490525,105.44043426,186.34,186.31,0.68]
[1760844490715,105.44043426,186.34,186.32,0.68]
[1760844492629,102.1,186.34,186.32,0.68]
[1760844494326,3.34043426,186.38,186.33,3.34043426]
[1760844494629,0.6,186.39,186.34,0.66]
[1760844494630,3.94043426,186.39,186.34,0.66]
[1760844494931,3.94043426,186.39,186.35,0.66]
[1760844497638,105.44043426,186.4,186.35,0.66]
[1760844497824,102.1,186.4,186.35,3.34043426]
[1760844498015,102.7,186.4,186.36,0.66]
[1760844499036,102.1,186.4,186.37,0.66]
[1760844499915,102.1,186.4,186.35,24.84133652]
[1760844499916,102.7,186.4,186.36,0.66]
[1760844502025,0.6,186.39,186.36,0.66]
[1760844503531,0.6,186.39,186.35,21.50090226]
[1760844503532,0.6,186.39,186.35,16.79467071]
[1760844503739,105.44043426,186.4,186.33,0.66]
[1760844503740,3.34043426,186.37,186.33,0.66]
[1760844503928,3.94043426,186.37,186.33,16.79640642]
[1760844505721,0.6,186.37,186.33,16.13640642]
[1760844505935,3.94043426,186.38,186.34,0.66]
[1760844506114,0.6,186.37,186.34,0.66]
[1760844507135,3.34043426,186.35,186.29,0.66]
[1760844507337,3.34043426,186.33,186.29,0.66]
[1760844507544,3.94043426,186.33,186.29,0.66]
[1760844508228,3.34043426,186.33,186.3,0.66]
[1760844510045,3.94043426,186.33,186.28,4.00043426]
[1760844510247,0.6,186.33,186.29,0.66]
[1760844510442,3.34043426,186.34,186.3,0.66]
[1760844510644,3.94043426,186.34,186.3,0.66]
[1760844512146,3.94043426,186.33,186.28,9.36866239]
[1760844512345,3.94043426,186.33,186.29,0.66]
[1760844512526,3.34043426,186.34,186.29,0.66]
[1760844512844,3.34043426,186.34,186.29,4.00043426]
[1760844513154,3.34043426,186.35,186.3,4.00043426]
[1760844513344,3.34043426,186.35,186.31,0.66]
[1760844513539,3.34043426,186.35,186.32,0.66]
[1760844513939,0.6,186.34,186.3,0.66]
[1760844518347,3.34043426,186.35,186.31,0.66]
[1760844518653,3.94043426,186.35,186.31,0.66]
[1760844519250,3.34043426,186.35,186.32,0.66]
[1760844519449,102.1,186.36,186.32,0.66]
[1760844519630,102.1,186.36,186.32,4.00043426]
[1760844520252,102.1,186.36,186.33,0.66]
[1760844520452,102.1,186.36,186.34,0.66]
[1760844523854,102.1,186.36,186.32,3.34043426]
[1760844524048,105.44043426,186.36,186.33,0.65]
[1760844525158,102.1,186.36,186.33,0.65]
[1760844530752,102.1,186.36,186.34,0.65]
[1760844538382,0.6,186.35,186.31,0.65]
[1760844538673,3.34043426,186.34,186.31,0.65]
[1760844539048,22.88,186.39,186.32,0.65]
[1760844539256,3.34043426,186.36,186.32,0.65]
[1760844539468,3.94043426,186.36,186.32,0.65]
[1760844539673,3.34043426,186.36,186.33,0.65]
[1760844540169,3.34043426,186.36,186.3,8.70788065]
[1760844540374,0.6,186.37,186.31,9.35773676]
[1760844540671,102.1,186.41,186.31,6.55404234]
[1760844540672,0.6,186.38,186.31,6.55404234]
[1760844540881,3.34043426,186.37,186.32,3.99043426]
[1760844541181,3.34043426,186.37,186.33,0.65]
[1760844541372,3.94043426,186.38,186.34,0.65]
[1760844542360,3.34043426,186.37,186.34,0.65]
[1760844542568,0.6,186.38,186.34,0.65]
[1760844542878,3.34043426,186.37,186.34,0.65]
[1760844543777,0.6,186.38,186.34,0.65]
[1760844543977,3.34043426,186.37,186.34,0.65]
[1760844545180,3.34043426,186.37,186.32,5.36692184]
[1760844545377,0.6,186.36,186.32,0.65]
[1760844545677,0.6,186.36,186.31,8.70781035]
[1760844545878,3.34043426,186.37,186.32,0.65]
[1760844546282,3.94043426,186.37,186.32,0.65]
[1760844546480,3.94043426,186.37,186.32,6.01702805]
[1760844546662,3.94043426,186.37,186.33,0.65]
[1760844548473,3.34043426,186.37,186.32,5.36702805]
[1760844548680,3.34043426,186.38,186.34,0.69]
[1760844548987,3.34043426,186.38,186.35,0.69]
[1760844550673,3.94043426,186.38,186.35,0.69]
[1760844551980,3.94043426,186.38,186.33,0.69]
[1760844552284,3.94043426,186.38,186.34,0.69]
[1760844554184,0.6,186.38,186.34,0.69]
[1760844554392,3.94043426,186.38,186.34,0.69]
[1760844555086,3.34043426,186.38,186.34,0.69]
[1760844555286,3.94043426,186.38,186.34,0.69]
[1760844559191,3.34043426,186.38,186.34,0.69]
[1760844559571,3.34043426,186.4,186.34,9.93358327]
[1760844559780,124.98,186.41,186.36,3.34043426]
[1760844559979,102.1,186.41,186.37,0.68]
[1760844560496,105.44043426,186.41,186.37,0.68]
[1760844561290,105.44043426,186.41,186.38,0.68]
[1760844564797,3.34043426,186.41,186.38,0.68]
[1760844564999,3.94043426,186.42,186.39,0.68]
[1760844567699,3.94043426,186.42,186.4,5.36563379]
[1760844568593,3.34043426,186.43,186.4,5.36563379]
[1760844568794,3.34043426,186.44,186.41,0.68]
[1760844568992,3.94043426,186.44,186.41,0.68]
[1760844569493,3.94043426,186.44,186.41,6.04563379]
[1760844569701,3.34043426,186.44,186.41,6.04563379]
[1760844570004,3.34043426,186.44,186.39,5.36509268]
[1760844570193,3.34043426,186.44,186.42,0.68]
[1760844570809,3.34043426,186.44,186.42,6.72563379]
[1760844571110,3.34043426,186.45,186.42,6.72563379]
[1760844571278,105.44043426,186.46,186.42,6.72563379]
[1760844571479,106.04043426,186.46,186.42,0.68]
[1760844571681,106.04043426,186.46,186.42,9.38517316]
[1760844572990,102.1,186.46,186.43,0.68]
[1760844573285,105.44043426,186.46,186.43,0.68]
[1760844573594,105.44043426,186.46,186.43,9.38517316]
[1760844574196,105.44043426,186.46,186.43,0.68]
[1760844574702,102.1,186.46,186.43,0.68]
[1760844575201,102.1,186.46,186.44,0.68]
[1760844575393,105.44043426,186.47,186.44,16.80859869]
[1760844575995,106.04043426,186.47,186.44,16.12859869]
[1760844576197,106.04043426,186.47,186.42,6.04413145]
[1760844576398,106.04043426,186.47,186.43,0.68]
[1760844577001,106.04043426,186.47,186.43,16.80859869]
[1760844580111,106.04043426,186.47,186.43,16.12859869]
[1760844580310,106.04043426,186.47,186.44,0.68]
[1760844580606,105.44043426,186.47,186.44,0.68]
[1760844581002,105.44043426,186.47,186.44,16.80859869]
[1760844581386,106.04043426,186.47,186.44,0.68]
[1760844583008,105.44043426,186.47,186.43,16.12859869]
[1760844583309,105.44043426,186.47,186.45,0.68]
[1760844583506,102.1,186.47,186.43,16.12773163]
[1760844583705,102.1,186.47,186.44,0.67]
[1760844584607,102.1,186.47,186.44,16.79773163]
[1760844584804,106.04043426,186.48,186.44,16.79773163]
[1760844585112,3.34043426,186.47,186.44,16.79773163]
[1760844591300,3.34043426,186.47,186.45,0.67]
[1760844593421,3.34043426,186.46,186.45,0.67]
[1760844595008,102.1,186.48,186.45,0.67]
[1760844595208,3.34043426,186.46,186.45,0.67]
[1760844598126,3.34043426,186.47,186.45,0.67]
[1760844600807,102.1,186.48,186.45,0.67]
[1760844601016,3.34043426,186.47,186.45,0.67]
[1760844603426,105.44043426,186.48,186.46,0.67]
[1760844603730,102.1,186.48,186.47,0.67]
[1760844604528,102.1,186.48,186.46,16.79599779]
[1760844604731,102.1,186.48,186.46,16.12599779]
[1760844604929,102.1,186.48,186.47,0.67]
[1760844605719,0.1,186.5,186.47,4.01043426]
[1760844605921,0.1,186.5,186.48,4.01043426]
[1760844606131,0.1,186.5,186.49,3.34043426]
[1760844606314,0.1,186.5,186.49,4.01043426]
[1760844606516,0.1,186.5,186.49,20.13296549]
[1760844606831,0.1,186.5,186.49,36.37165851]
[1760844607414,0.1,186.52,186.5,10.87647521]
[1760844607610,0.1,186.52,186.51,3.87659854]
[1760844607814,0.1,186.52,186.51,4.56659854]
[1760844608134,0.1,186.52,186.51,6.71592284]
[1760844608930,0.1,186.52,186.51,12.07756564]
[1760844609329,0.1,186.52,186.51,3.37548858]
[1760844609525,0.1,186.52,186.51,6.71592284]
[1760844609932,0.1,186.52,186.51,12.07756564]
[1760844610331,0.1,186.52,186.51,22.95404085]
[1760844611219,0.1,186.52,186.51,72.93404085]
[1760844611625,0.1,186.55,186.51,86.33814786]
[1760844611823,0.1,186.55,186.53,10.87647521]
[1760844612139,0.1,186.55,186.54,3.87651231]
[1760844612332,0.1,186.55,186.54,4.56651231]
[1760844612738,0.1,186.55,186.54,15.44298752]
[1760844613234,0.1,186.55,186.54,20.80376804]
[1760844616222,0.1,186.55,186.54,22.95251505]
[1760844618225,0.1,186.56,186.54,22.95251505]
[1760844618419,0.1,186.56,186.55,4.04043426]
[1760844618622,0.1,186.56,186.55,14.91690947]
[1760844618942,0.1,186.56,186.55,44.16542565]
[1760844619253,0.1,186.57,186.55,44.16542565]
[1760844619426,0.1,186.57,186.56,4.57645484]
[1760844619828,0.1,186.59,186.56,17.60144623]
[1760844620041,0.1,186.59,186.58,14.21690947]
[1760844620344,0.1,186.59,186.58,20.11250384]
[1760844620545,0.1,186.59,186.58,22.96090462]
[1760844621552,0.1,186.59,186.58,19.62047036]
[1760844622043,0.1,186.59,186.58,22.96090462]
[1760844624467,0.1,186.6,186.59,8.69977827]
[1760844624647,0.1,186.6,186.59,9.39977827]
[1760844625029,0.1,186.6,186.59,39.82021253]
[1760844627538,0.1,186.6,186.59,50.69668774]
[1760844627750,0.1,186.6,186.59,51.23262214]
[1760844628352,0.1,186.61,186.6,10.87647521]
[1760844628655,0.1,186.61,186.6,12.11238089]
[1760844629030,0.1,186.61,186.6,18.79324941]
[1760844629452,0.1,186.61,186.6,24.15230621]
[1760844629751,3.34043426,186.67,186.6,24.15230621]
[1760844629935,0.6,186.68,186.63,10.87647521]
[1760844630135,3.94043426,186.67,186.63,10.87647521]
[1760844630346,3.94043426,186.67,186.63,11.57647521]
[1760844630639,3.94043426,186.67,186.63,27.6851551]
[1760844632749,3.94043426,186.66,186.62,10.87647521]
[1760844632952,0.6,186.65,186.62,10.87647521]
[1760844633146,3.94043426,186.65,186.62,16.1095449]
[1760844633352,3.94043426,186.65,186.6,11.57647521]
[1760844633353,3.34043426,186.64,186.61,10.87647521]
[1760844633536,3.94043426,186.65,186.61,27.68602011]
[1760844635336,0.6,186.65,186.61,26.98602011]
[1760844635536,3.94043426,186.65,186.62,0.7]
[1760844636948,22.88,186.69,186.62,0.7]
[1760844636949,0.6,186.67,186.62,0.7]
[1760844637156,3.94043426,186.66,186.62,0.7]
[1760844637345,3.94043426,186.66,186.62,16.8095449]
[1760844637860,102.2,186.74,186.63,0.7]
[1760844637861,3.94043426,186.68,186.63,0.7]
[1760844638158,3.34043426,186.67,186.64,0.7]
[1760844638352,3.34043426,186.68,186.65,0.7]
[1760844639471,3.94043426,186.69,186.65,0.7]
[1760844639643,3.34043426,186.69,186.66,0.7]
[1760844640044,3.34043426,186.68,186.66,0.7]
[1760844640250,3.34043426,186.68,186.64,16.10781497]
[1760844640449,3.34043426,186.68,186.65,0.7]
[1760844643957,0.6,186.69,186.65,0.7]
[1760844644157,3.34043426,186.68,186.65,0.7]
[1760844645667,3.94043426,186.68,186.65,0.7]
[1760844646269,124.98,186.73,186.65,0.7]
[1760844646463,3.34043426,186.68,186.65,0.7]
[1760844648272,3.34043426,186.68,186.64,21.46568808]
[1760844648480,3.34043426,186.68,186.65,0.67]
[1760844648660,102.7,186.73,186.66,10.87647521]
[1760844648846,3.34043426,186.71,186.67,0.67]
[1760844649053,3.94043426,186.71,186.67,0.67]
[1760844649357,3.34043426,186.71,186.68,0.67]
[1760844650865,3.34043426,186.71,186.66,20.10992932]
[1760844651045,3.34043426,186.72,186.69,0.67]
[1760844653770,3.34043426,186.72,186.7,0.67]
[1760844654073,105.44043426,186.73,186.69,0.67]
[1760844654257,106.04043426,186.73,186.69,0.67]
[1760844654455,3.94043426,186.73,186.69,0.67]
[1760844654653,3.34043426,186.73,186.7,0.67]
[1760844654851,0.1,186.74,186.7,4.01043426]
[1760844655066,0.1,186.74,186.71,0.67]
[1760844655458,0.1,186.74,186.72,0.67]
[1760844656272,0.1,186.74,186.46,5.36308055]
[1760844656273,22.88,186.72,186.46,5.36308055]
[1760844656482,3.34043426,186.53,186.48,3.34043426]
[1760844656689,3.34043426,186.53,186.49,0.67]
[1760844656853,3.34043426,186.51,186.49,0.67]
[1760844657057,3.34043426,186.51,186.47,0.67]
[1760844657247,3.34043426,186.48,186.4,3.34043426]
[1760844657453,3.34043426,186.48,186.42,5.36308055]
[1760844657663,3.34043426,186.47,186.43,1.20639435]
[1760844657867,3.34043426,186.47,186.44,10.87647521]
[1760844658190,3.34043426,186.47,186.45,0.67]
[1760844658468,3.34043426,186.5,186.46,11.54647521]
[1760844658661,3.34043426,186.5,186.47,0.67]
[1760844658860,3.34043426,186.5,186.48,0.67]
[1760844659251,3.34043426,186.49,186.48,0.67]
[1760844659868,3.34043426,186.5,186.48,0.67]
[1760844661060,3.34043426,186.49,186.46,16.90951812]
[1760844661264,3.34043426,186.49,186.47,0.67]
[1760844661482,3.59610384,186.55,186.48,15.42316]
[1760844661775,3.34043426,186.64,186.55,33.75647521]
[1760844661991,3.34043426,186.62,186.57,10.87647521]
[1760844662155,3.34043426,186.62,186.59,10.87647521]
[1760844662357,3.34043426,186.62,186.59,11.54647521]
[1760844662678,4.09470595,186.65,186.58,3.34043426]
[1760844662880,0.5,186.65,186.59,11.54647521]
[1760844663050,4.09470595,186.66,186.6,4.01043426]
[1760844663250,0.5,186.66,186.6,4.01043426]
[1760844663450,4.09470595,186.66,186.6,4.01043426]
[1760844663760,0.5,186.66,186.6,4.01043426]
[1760844663970,4.09470595,186.66,186.6,4.01043426]
[1760844664167,0.5,186.66,186.6,4.01043426]
[1760844664355,4.09470595,186.66,186.6,4.01043426]
[1760844664552,0.5,186.66,186.6,4.01043426]
[1760844664862,4.09470595,186.66,186.6,4.01043426]
[1760844665166,0.5,186.66,186.6,4.01043426]
[1760844665371,4.09470595,186.66,186.6,4.01043426]
[1760844665675,0.5,186.66,186.6,4.01043426]
[1760844665854,4.09470595,186.66,186.6,4.01043426]
[1760844666055,0.5,186.66,186.59,10.87647521]
[1760844666256,3.34043426,186.62,186.54,4.01043426]
[1760844666464,3.34043426,186.62,186.52,5.36134983]
[1760844666465,26.97470595,186.61,186.53,3.34043426]
[1760844666677,3.34043426,186.6,186.53,3.34043426]
[1760844666861,3.34043426,186.6,186.49,0.53622178]
[1760844666862,0.5,186.59,186.51,3.34043426]
[1760844667060,3.34043426,186.58,186.51,3.34043426]
[1760844667266,0.5,186.57,186.51,3.34043426]
[1760844668065,23.38,186.57,186.5,0.65]
[1760844668277,3.34043426,186.56,186.48,3.99043426]
[1760844668480,0.5,186.55,186.48,0.65]
[1760844668671,3.34043426,186.54,186.48,0.65]
[1760844668866,0.5,186.53,186.47,17.81370057]
[1760844669088,0.5,186.53,186.47,14.21690947]
[1760844669269,0.5,186.53,186.46,16.77253123]
[1760844669586,0.5,186.53,186.46,0.65]
[1760844670092,3.34043426,186.52,186.45,6.00999534]
[1760844670388,3.34043426,186.52,186.45,0.65]
[1760844670389,0.5,186.51,186.45,0.65]
[1760844671893,3.84043426,186.51,186.45,0.65]
[1760844672064,3.34043426,186.5,186.43,3.99043426]
[1760844672269,0.5,186.49,186.43,0.65]
[1760844672798,3.84043426,186.49,186.43,0.65]
[1760844673293,0.5,186.49,186.43,3.99043426]
[1760844674266,0.5,186.49,186.43,0.65]
[1760844674763,16.74037833,186.57,186.43,0.65]
[1760844674764,0.5,186.56,186.46,3.34043426]
[1760844674965,3.34043426,186.55,186.47,0.66]
[1760844675164,0.5,186.54,186.47,0.66]
[1760844676582,23.38,186.54,186.47,0.66]
[1760844676789,3.34043426,186.51,186.45,0.66]
[1760844677087,0.5,186.5,186.45,0.66]
[1760844677388,0.5,186.5,186.46,0.66]
[1760844678675,3.84043426,186.5,186.46,0.66]
[1760844678985,3.34043426,186.49,186.44,0.66]
[1760844679166,0.5,186.48,186.44,0.66]
[1760844679367,0.5,186.48,186.45,0.66]
[1760844680478,3.84043426,186.48,186.45,0.66]
[1760844680677,0.5,186.48,186.45,0.66]
[1760844682287,3.84043426,186.48,186.45,0.66]
[1760844682700,0.5,186.48,186.39,5.36502155]
[1760844682868,0.5,186.49,186.43,3.34043426]
[1760844683068,0.5,186.49,186.44,0.66]
[1760844683275,0.5,186.5,186.44,0.66]
[1760844683475,0.5,186.5,186.44,4.00043426]
[1760844683684,0.5,186.5,186.45,0.66]